[Event "Championnat du monde jeunes U12"]
[Date "2024.11.23"]
[White "Stepanyan, Davit"]
[Black "Diachek, Andrii"]
[WhiteElo "2011"]
[BlackElo "2162"]
[Round "8.7"]
[Result "1-0"]
[TimeControl "5400+30"]

1. d4 {[%clk 1:30:57]} 1... Nf6 {[%clk 1:30:53]} 2. c4 {[%clk 1:31:16]} 2... e6
{[%clk 1:31:19]} 3. g3 {[%clk 1:31:38]} 3... Bb4+ {[%clk 1:31:15]} 4. Bd2 {[%clk
1:32:02]} 4... Be7 {[%clk 1:31:37]} 5. Bg2 {[%clk 1:32:06]} 5... d5 {[%clk
1:31:49]} 6. Nf3 {[%clk 1:32:12]} 6... O-O {[%clk 1:31:46]} 7. O-O {[%clk
1:32:33]} 7... Nbd7 {[%clk 1:31:56]} 8. Qc2 {[%clk 1:32:44]} 8... Ne4 {[%clk
1:27:44]} 9. Bf4 {[%clk 1:31:54]} 9... c6 {[%clk 1:27:57]} 10. Rd1 {[%clk
1:31:24]} 10... g5 {[%clk 1:25:20]} 11. Bc1 {[%clk 1:30:39]} 11... f5 {[%clk
1:23:18]} 12. a4 {[%clk 1:28:23]} 12... a5 {[%clk 1:20:00]} 13. b3 {[%clk
1:28:44]} 13... Bf6 {[%clk 1:17:10]} 14. Bb2 {[%clk 1:28:07]} 14... Bg7 {[%clk
0:57:52]} 15. Nbd2 {[%clk 1:26:23]} 15... Ndf6 {[%clk 0:47:33]} 16. Ne5 {[%clk
1:23:09]} 16... Nd6 {[%clk 0:42:32]} 17. Rac1 {[%clk 1:14:04]} 17... Nd7 {[%clk
0:37:37]} 18. Nd3 {[%clk 1:00:53]} 18... Nf6 {[%clk 0:29:42]} 19. f3 {[%clk
0:59:03]} 19... g4 {[%clk 0:28:33]} 20. Ne5 {[%clk 0:54:45]} 20... Nf7 {[%clk
0:27:16]} 21. Nf1 Qb6 {[%clk 0:24:04]} 22. Kh1 {[%clk 0:48:19]} 22... Nxe5
{[%clk 0:19:03]} 23. dxe5 {[%clk 0:48:42]} 23... Nd7 {[%clk 0:19:22]} 24. f4
{[%clk 0:48:23]} 24... Nb8 {[%clk 0:16:59]} 25. Bd4 {[%clk 0:45:50]} 25... c5
{[%clk 0:16:39]} 26. Bf2 {[%clk 0:45:38]} 26... d4 {[%clk 0:16:53]} 27. e3
{[%clk 0:45:38]} 27... Nc6 {[%clk 0:16:01]} 28. exd4 {[%clk 0:44:20]} 28... cxd4
{[%clk 0:16:23]} 29. c5 {[%clk 0:43:55]} 29... Qc7 {[%clk 0:16:20]} 30. Bxd4
{[%clk 0:43:28]} 30... Bd7 {[%clk 0:15:11]} 31. Bc3 {[%clk 0:41:40]} 31... Ne7
{[%clk 0:13:24]} 32. Ne3 {[%clk 0:41:13]} 32... Bc6 {[%clk 0:13:05]} 33. Bxc6
{[%clk 0:38:57]} 33... Nxc6 {[%clk 0:09:45]} 34. Rd6 {[%clk 0:37:36]} 34... Rfe8
{[%clk 0:09:08]} 35. Rcd1 {[%clk 0:37:13]} 35... Bf8 {[%clk 0:08:44]} 36. Rd7
{[%clk 0:37:35]} 36... Qc8 {[%clk 0:08:40]} 37. Nxg4 {[%clk 0:35:36]} 37... Re7
{[%clk 0:08:41]} 38. Nf6+ {[%clk 0:35:46]} 38... Kg7 {[%clk 0:07:45]} 39. Qg2
{[%clk 0:34:54]} 39... Nb8 {[%clk 0:05:28]} 40. Rxe7+ {[%clk 0:34:55]} 40...
Bxe7 {[%clk 0:05:54]} 41. g4 {[%clk 0:35:11]} 41... Qc6 {[%clk 0:06:02]} 42.
gxf5+ {[%clk 0:34:50]} 42... Qxg2+ {[%clk 0:06:23]} 43. Kxg2 {[%clk 0:35:16]}
43... exf5 {[%clk 0:06:23]} 44. Nd5 {[%clk 0:35:30]} 44... Kf8 {[%clk 0:05:02]}
45. Nc7 {[%clk 0:35:11]} 45... Ra7 {[%clk 0:05:28]} 46. e6 {[%clk 0:34:50]}
46... Nc6 {[%clk 0:05:20]} 47. Rd5 {[%clk 0:34:58]} 47... Bd8 {[%clk 0:02:58]}
48. Rxf5+ {[%clk 0:35:21]} 48... Kg8 {[%clk 0:03:24]} 49. Rf7 {[%clk 0:35:22]}
49... Ne7 {[%clk 0:03:12]} 50. f5 {[%clk 0:33:31]} 50... Nxf5 {[%clk 0:03:07]}
51. Rxf5 {[%clk 0:33:53]} 51... Bxc7 {[%clk 0:03:26]} 52. Rf7 {[%clk 0:34:01]}
52... Bb8 {[%clk 0:02:39]} 53. Rg7+ {[%clk 0:34:17]} 1-0

[Variant "Standard"]
[Site "Europe Echecs"]

[Event "Championnat du monde jeunes U12"]
[Date "2024.11.23"]
[White "Platonovs, Nikolajs"]
[Black "Belin, Anton"]
[WhiteElo "1969"]
[BlackElo "2138"]
[Round "8.8"]
[Result "1-0"]
[TimeControl "5400+30"]

1. e4 {[%clk 1:30:57]} 1... e6 {[%clk 1:30:39]} 2. d4 {[%clk 1:31:20]} 2... d5
{[%clk 1:30:30]} 3. Nc3 {[%clk 1:31:43]} 3... Nf6 {[%clk 1:30:22]} 4. Bg5 {[%clk
1:32:02]} 4... dxe4 {[%clk 1:29:46]} 5. Nxe4 {[%clk 1:32:16]} 5... Nbd7 {[%clk
1:29:17]} 6. Nf3 {[%clk 1:31:14]} 6... h6 {[%clk 1:28:18]} 7. Bxf6 {[%clk
1:28:40]} 7... Nxf6 {[%clk 1:27:58]} 8. Bd3 {[%clk 1:27:59]} 8... Nxe4 {[%clk
1:24:06]} 9. Bxe4 {[%clk 1:28:20]} 9... Bd6 {[%clk 1:24:29]} 10. Qe2 {[%clk
1:27:47]} 10... O-O {[%clk 1:22:05]} 11. O-O-O {[%clk 1:27:33]} 11... Qe7 {[%clk
1:18:06]} 12. Kb1 {[%clk 1:26:11]} 12... c5 {[%clk 1:13:27]} 13. g4 {[%clk
1:23:15]} 13... cxd4 {[%clk 1:08:27]} 14. Nxd4 {[%clk 1:23:31]} 14... Rb8 {[%clk
1:02:06]} 15. h4 {[%clk 1:22:19]} 15... f5 {[%clk 0:48:56]} 16. gxf5 {[%clk
1:21:07]} 16... exf5 {[%clk 0:48:59]} 17. Bd5+ {[%clk 1:21:35]} 17... Kh8 {[%clk
0:48:41]} 18. Qh5 {[%clk 1:20:14]} 18... Qf6 {[%clk 0:45:31]} 19. Rhg1 {[%clk
1:16:33]} 19... Bd7 {[%clk 0:43:14]} 20. Rg6 {[%clk 1:07:15]} 20... Be8 {[%clk
0:40:52]} 21. Rdg1 {[%clk 1:06:58]} 21... Bf4 {[%clk 0:36:59]} 22. Rxf6 {[%clk
1:06:00]} 22... Bxh5 {[%clk 0:37:14]} 23. Rxf8+ {[%clk 1:06:15]} 23... Rxf8
{[%clk 0:37:29]} 24. Ne6 {[%clk 1:06:43]} 24... Bd6 {[%clk 0:36:35]} 25. Nxf8
{[%clk 1:07:02]} 25... Bxf8 {[%clk 0:36:35]} 26. Bxb7 {[%clk 1:07:21]} 26... Bc5
{[%clk 0:36:14]} 27. Rg2 {[%clk 1:07:07]} 27... Be7 {[%clk 0:32:48]} 28. Rh2
{[%clk 1:04:46]} 28... Kh7 {[%clk 0:31:37]} 29. f3 {[%clk 1:02:58]} 29... Kg6
{[%clk 0:30:45]} 30. c3 {[%clk 1:00:43]} 30... f4 {[%clk 0:30:09]} 31. Kc2
{[%clk 0:59:11]} 31... Kf5 {[%clk 0:29:46]} 32. Kd3 {[%clk 0:59:02]} 32... Ke5
{[%clk 0:29:37]} 33. Re2+ {[%clk 0:56:53]} 33... Kd6 {[%clk 0:29:43]} 34. Rxe7
{[%clk 0:57:12]} 34... Kxe7 {[%clk 0:29:50]} 35. Ke4 {[%clk 0:57:38]} 35... Bf7
{[%clk 0:28:34]} 36. Bd5 {[%clk 0:57:57]} 36... Bg6+ {[%clk 0:28:43]} 37. Kxf4
{[%clk 0:57:06]} 37... Kd6 {[%clk 0:28:32]} 38. Bg8 {[%clk 0:57:06]} 38... Bb1
{[%clk 0:27:40]} 39. Ke3 {[%clk 0:56:44]} 39... Ke5 {[%clk 0:26:36]} 40. f4+
{[%clk 0:56:50]} 40... Kf6 {[%clk 0:26:59]} 41. Bc4 {[%clk 0:56:34]} 41... h5
{[%clk 0:25:48]} 42. a4 {[%clk 0:54:50]} 42... Bc2 {[%clk 0:23:15]} 43. a5
{[%clk 0:55:12]} 43... g6 {[%clk 0:22:49]} 44. b4 {[%clk 0:55:19]} 44... Bf5
{[%clk 0:22:35]} 45. Bd3 {[%clk 0:55:21]} 45... Bd7 {[%clk 0:22:44]} 46. Kd4
{[%clk 0:55:39]} 46... Be6 {[%clk 0:21:59]} 47. Kc5 {[%clk 0:55:50]} 47... Bd7
{[%clk 0:22:19]} 48. Kd6 {[%clk 0:56:08]} 1-0

[Variant "Standard"]
[Site "Europe Echecs"]

[Event "Championnat du monde jeunes U12"]
[Date "2024.11.23"]
[White "Ambartsumian, Tyhran"]
[Black "Gao, Heye"]
[WhiteElo "2123"]
[BlackElo "1933"]
[Round "8.9"]
[Result "1-0"]
[TimeControl "5400+30"]

1. e4 {[%clk 1:29:58]} 1... e5 {[%clk 1:30:20]} 2. Nf3 {[%clk 1:30:18]} 2... Nc6
{[%clk 1:30:17]} 3. Bb5 {[%clk 1:30:43]} 3... a6 {[%clk 1:30:08]} 4. Ba4 {[%clk
1:31:09]} 4... Nf6 {[%clk 1:30:01]} 5. O-O {[%clk 1:31:34]} 5... Be7 {[%clk
1:28:47]} 6. Re1 {[%clk 1:31:56]} 6... b5 {[%clk 1:28:41]} 7. Bb3 {[%clk
1:32:21]} 7... d6 {[%clk 1:27:51]} 8. a4 {[%clk 1:32:49]} 8... Bd7 {[%clk
1:26:33]} 9. c3 {[%clk 1:33:11]} 9... O-O {[%clk 1:24:57]} 10. d3 {[%clk
1:31:12]} 10... h6 {[%clk 1:21:25]} 11. Nbd2 {[%clk 1:31:22]} 11... Na5 {[%clk
1:17:11]} 12. Bc2 {[%clk 1:31:48]} 12... c5 {[%clk 1:15:10]} 13. Nf1 {[%clk
1:31:10]} 13... Re8 {[%clk 1:12:12]} 14. Ng3 {[%clk 1:23:15]} 14... Nc6 {[%clk
1:06:35]} 15. Nh4 {[%clk 1:21:48]} 15... d5 {[%clk 1:04:07]} 16. Ngf5 {[%clk
1:19:36]} 16... Bf8 {[%clk 1:00:03]} 17. Qf3 {[%clk 1:15:33]} 17... Be6 {[%clk
0:55:16]} 18. axb5 {[%clk 1:14:54]} 18... axb5 {[%clk 0:45:43]} 19. Rxa8 {[%clk
1:15:04]} 19... Qxa8 {[%clk 0:44:53]} 20. Nxh6+ {[%clk 1:14:48]} 20... gxh6
{[%clk 0:39:14]} 21. Qxf6 {[%clk 1:13:31]} 21... Qd8 {[%clk 0:36:24]} 22. Qxd8
{[%clk 1:13:52]} 22... Rxd8 {[%clk 0:33:37]} 23. exd5 {[%clk 1:06:06]} 23... Rd7
24. d6 Rxd6 {[%clk 0:30:41]} 25. Be3 {[%clk 1:04:28]} 25... Rd8 {[%clk 0:27:17]}
26. g3 {[%clk 1:01:40]} 26... b4 {[%clk 0:25:13]} 27. Ba4 {[%clk 0:52:00]} 27...
Na5 {[%clk 0:22:26]} 28. cxb4 {[%clk 0:51:41]} 28... cxb4 {[%clk 0:21:38]} 29.
Bb6 {[%clk 0:51:50]} 29... Rd5 {[%clk 0:20:06]} 30. Nf3 {[%clk 0:45:38]} 30...
Rxd3 {[%clk 0:16:07]} 31. Nxe5 {[%clk 0:45:17]} 31... Rd5 {[%clk 0:15:57]} 32.
b3 {[%clk 0:42:37]} 32... Bd6 {[%clk 0:12:09]} 33. Nf3 {[%clk 0:36:03]} 33...
Rd3 {[%clk 0:09:47]} 34. Nd4 {[%clk 0:35:44]} 34... Bxb3 {[%clk 0:09:33]} 35.
Re8+ {[%clk 0:35:03]} 35... Kg7 {[%clk 0:07:22]} 36. Nxb3 {[%clk 0:33:55]} 36...
Nxb3 {[%clk 0:07:36]} 37. Rd8 {[%clk 0:34:19]} 37... Nc1 {[%clk 0:07:38]} 38.
Bc2 {[%clk 0:22:26]} 38... Rd2 {[%clk 0:06:31]} 39. Be4 {[%clk 0:21:22]} 39...
Ne2+ {[%clk 0:05:58]} 40. Kg2 {[%clk 0:20:55]} 40... Nc3 {[%clk 0:03:29]} 41.
Be3 {[%clk 0:19:06]} 41... Rd1 {[%clk 0:03:00]} 42. Bf3 {[%clk 0:19:14]} 42...
Rd3 {[%clk 0:03:15]} 43. Bf4 {[%clk 0:18:45]} 43... b3 {[%clk 0:02:51]} 44. Bxd6
{[%clk 0:16:38]} 44... Kh7 {[%clk 0:01:18]} 45. Bg4 {[%clk 0:02:10]} 45... Rd5
{[%clk 0:01:12]} 46. Be7 {[%clk 0:02:31]} 46... Rxd8 {[%clk 0:01:27]} 47. Bf5+
{[%clk 0:02:57]} 47... Kg8 {[%clk 0:01:15]} 48. Bxd8 {[%clk 0:03:15]} 48... b2
{[%clk 0:01:26]} 49. Ba5 {[%clk 0:03:40]} 49... b1=Q {[%clk 0:01:42]} 50. Bxb1
{[%clk 0:04:04]} 50... Nxb1 {[%clk 0:02:07]} 51. Bb4 {[%clk 0:04:32]} 51... Kh7
{[%clk 0:02:32]} 52. Kf3 {[%clk 0:04:56]} 52... Kg6 {[%clk 0:02:59]} 53. Ke4
{[%clk 0:05:05]} 53... Kg5 {[%clk 0:03:21]} 54. Kd3 {[%clk 0:05:06]} 54... Kg4
{[%clk 0:03:46]} 55. Kc2 {[%clk 0:05:32]} 55... Kf3 {[%clk 0:04:06]} 56. Kxb1
{[%clk 0:05:56]} 56... Kxf2 {[%clk 0:04:32]} 57. Bd6 {[%clk 0:06:12]} 57... Kg2
{[%clk 0:03:32]} 58. h4 {[%clk 0:06:35]} 58... h5 {[%clk 0:03:47]} 59. Kc2
{[%clk 0:07:01]} 59... f6 {[%clk 0:03:52]} 60. Kd3 {[%clk 0:07:26]} 60... Kf3
{[%clk 0:04:18]} 61. Bf4 {[%clk 0:07:51]} 1-0

[Variant "Standard"]
[Site "Europe Echecs"]

[Event "Championnat du monde jeunes U12"]
[Date "2024.11.23"]
[White "Luger, Sam"]
[Black "Kleschevnikov, Arseny"]
[WhiteElo "2094"]
[BlackElo "1893"]
[Round "8.10"]
[Result "1/2-1/2"]
[TimeControl "5400+30"]

1. d4 {[%clk 1:30:42]} 1... d5 {[%clk 1:30:56]} 2. c4 {[%clk 1:30:54]} 2... e6
{[%clk 1:31:22]} 3. Nf3 {[%clk 1:31:21]} 3... Nf6 {[%clk 1:31:47]} 4. g3 {[%clk
1:31:39]} 4... dxc4 {[%clk 1:32:13]} 5. Bg2 {[%clk 1:31:45]} 5... c6 {[%clk
1:32:37]} 6. O-O {[%clk 1:30:46]} 6... b5 {[%clk 1:32:18]} 7. Ne5 {[%clk
1:31:08]} 7... Bb7 {[%clk 1:32:43]} 8. a4 {[%clk 1:29:16]} 8... a6 {[%clk
1:32:37]} 9. b3 {[%clk 1:26:56]} 9... cxb3 {[%clk 1:32:34]} 10. Bb2 {[%clk
1:27:14]} 10... Be7 {[%clk 1:23:50]} 11. Nd2 {[%clk 1:23:02]} 11... Qb6 {[%clk
1:12:57]} 12. Qxb3 {[%clk 1:06:49]} 12... Nbd7 {[%clk 1:07:26]} 13. Rfc1 {[%clk
0:34:17]} 13... Nxe5 {[%clk 0:57:47]} 14. dxe5 {[%clk 0:34:32]} 14... Nd7 {[%clk
0:57:58]} 15. axb5 {[%clk 0:05:37]} 15... axb5 {[%clk 0:53:00]} 16. Rxa8+ {[%clk
0:05:02]} 16... Bxa8 {[%clk 0:53:21]} 17. Qd3 {[%clk 0:03:42]} 17... Bb7 {[%clk
0:32:19]} 18. Ne4 {[%clk 0:00:59]} 18... c5 {[%clk 0:29:24]} 19. Rd1 {[%clk
0:00:42]} 19... Nb8 {[%clk 0:19:20]} 20. Nd6+ {[%clk 0:00:45]} 20... Bxd6 {[%clk
0:19:39]} 21. exd6 {[%clk 0:00:45]} 21... O-O {[%clk 0:06:53]} 22. Bxb7 {[%clk
0:01:04]} 22... Qxb7 {[%clk 0:07:21]} 23. Qc3 {[%clk 0:01:26]} 23... f6 {[%clk
0:07:43]} 24. Qxc5 {[%clk 0:01:51]} 24... Rc8 {[%clk 0:06:55]} 25. Qe3 {[%clk
0:01:04]} 25... Kf7 {[%clk 0:05:45]} 26. Qd3 {[%clk 0:01:11]} 26... h6 {[%clk
0:05:38]} 27. h4 {[%clk 0:01:05]} 27... Nd7 {[%clk 0:05:18]} 28. Bd4 {[%clk
0:00:55]} 28... b4 {[%clk 0:04:51]} 29. Qb3 {[%clk 0:00:55]} 29... Qb5 {[%clk
0:04:05]} 30. Ra1 {[%clk 0:00:55]} 30... Rc6 {[%clk 0:03:32]} 31. Rb1 {[%clk
0:00:45]} 31... Rxd6 {[%clk 0:02:47]} 32. Qxb4 {[%clk 0:00:55]} 32... Qxb4
{[%clk 0:03:13]} 33. Rxb4 {[%clk 0:01:13]} 33... e5 {[%clk 0:03:03]} 34. Be3
{[%clk 0:00:57]} 34... h5 {[%clk 0:02:55]} 35. f3 {[%clk 0:01:12]} 35... f5
{[%clk 0:02:33]} 36. Bg5 {[%clk 0:01:16]} 36... g6 {[%clk 0:02:22]} 37. Rb7
{[%clk 0:01:32]} 37... Ke6 {[%clk 0:02:29]} 38. Ra7 {[%clk 0:01:36]} 38... Rb6
{[%clk 0:02:33]} 39. Kf2 {[%clk 0:01:53]} 39... Rb5 {[%clk 0:02:19]} 40. Ra8
{[%clk 0:01:51]} 40... Rb8 {[%clk 0:02:38]} 41. Ra6+ {[%clk 0:02:10]} 41... Rb6
{[%clk 0:03:01]} 42. Ra7 {[%clk 0:02:30]} 42... Rb5 {[%clk 0:03:21]} 43. Rc7
{[%clk 0:02:43]} 43... Rc5 {[%clk 0:03:32]} 44. Rb7 {[%clk 0:02:10]} 44... Rc6
{[%clk 0:03:54]} 45. Ra7 {[%clk 0:02:20]} 45... Rb6 {[%clk 0:03:43]} 46. Bd8
{[%clk 0:01:21]} 46... Rc6 {[%clk 0:03:38]} 47. Ra8 {[%clk 0:01:31]} 47... Nf6
{[%clk 0:02:31]} 48. Ba5 {[%clk 0:01:08]} 48... Nd7 {[%clk 0:01:51]} 49. Rg8
{[%clk 0:01:01]} 49... Kf7 {[%clk 0:02:00]} 50. Rh8 {[%clk 0:01:10]} 50... Nf6
{[%clk 0:01:55]} 51. Bb4 {[%clk 0:01:04]} 51... Ke6 {[%clk 0:01:27]} 52. Rd8
{[%clk 0:01:03]} 52... Kf7 {[%clk 0:01:33]} 53. Ba3 {[%clk 0:01:06]} 53... Ke6
{[%clk 0:01:48]} 54. Bb2 {[%clk 0:01:04]} 54... Rb6 {[%clk 0:01:53]} 55. Rd2
{[%clk 0:00:50]} 55... Rc6 {[%clk 0:01:47]} 56. Ba1 {[%clk 0:00:43]} 56... Ra6
{[%clk 0:02:03]} 57. Bb2 {[%clk 0:00:55]} 57... Rc6 {[%clk 0:02:21]} 58. Rd3
{[%clk 0:00:58]} 58... Rb6 {[%clk 0:02:23]} 59. Ba1 {[%clk 0:01:07]} 59... Nd5
{[%clk 0:02:17]} 60. Ra3 {[%clk 0:01:17]} 60... Rb5 {[%clk 0:00:58]} 61. Ra6+
{[%clk 0:01:39]} 61... Rb6 {[%clk 0:01:08]} 62. Ra5 {[%clk 0:02:03]} 62... e4
{[%clk 0:00:55]} 63. fxe4 {[%clk 0:01:53]} 63... fxe4 {[%clk 0:01:22]} 64. Bd4
{[%clk 0:01:54]} 64... Rc6 {[%clk 0:01:40]} 65. Ra8 {[%clk 0:01:47]} 65... Kd7
{[%clk 0:00:34]} 66. Ra4 {[%clk 0:01:29]} 66... Ke6 {[%clk 0:00:54]} 67. Be3
{[%clk 0:01:15]} 67... Kf5 {[%clk 0:01:01]} 68. Ra5 {[%clk 0:01:31]} 68... Ke5
{[%clk 0:01:01]} 69. Bf4+ {[%clk 0:01:31]} 69... Ke6 {[%clk 0:01:26]} 70. Bg5
{[%clk 0:01:41]} 70... Ke5 {[%clk 0:01:40]} 71. Ra8 {[%clk 0:01:42]} 71... Kf5
{[%clk 0:01:38]} 72. Rf8+ {[%clk 0:01:58]} 72... Ke5 {[%clk 0:01:51]} 73. Bh6
{[%clk 0:01:43]} 73... Rf6+ {[%clk 0:01:15]} 74. Rxf6 {[%clk 0:01:47]} 74...
Kxf6 {[%clk 0:01:41]} 75. Bg5+ {[%clk 0:01:34]} 75... Kf5 {[%clk 0:02:01]} 76.
Bh6 {[%clk 0:01:16]} 76... Kg4 {[%clk 0:02:05]} 77. Kg2 {[%clk 0:01:25]} 77...
Kf5 {[%clk 0:01:44]} 1/2-1/2

[Variant "Standard"]
[Site "Europe Echecs"]

[Event "Championnat du monde jeunes U12"]
[Date "2024.11.23"]
[White "Mamikonyan, Artem T"]
[Black "Birmenko, Nikolay"]
[WhiteElo "1918"]
[BlackElo "2084"]
[Round "8.11"]
[Result "0-1"]
[TimeControl "5400+30"]

1. e4 {[%clk 1:30:58]} 1... c5 {[%clk 1:30:36]} 2. Nf3 {[%clk 1:31:24]} 2... Nc6
{[%clk 1:31:00]} 3. Bb5 {[%clk 1:31:47]} 3... g6 {[%clk 1:31:12]} 4. O-O {[%clk
1:32:12]} 4... Bg7 {[%clk 1:31:05]} 5. Re1 {[%clk 1:32:37]} 5... Nf6 {[%clk
1:31:14]} 6. e5 {[%clk 1:32:58]} 6... Nd5 {[%clk 1:31:35]} 7. Nc3 {[%clk
1:33:23]} 7... Nc7 {[%clk 1:31:59]} 8. Bxc6 {[%clk 1:33:46]} 8... dxc6 {[%clk
1:32:13]} 9. h3 {[%clk 1:33:47]} 9... O-O {[%clk 1:29:14]} 10. d3 {[%clk
1:34:11]} 10... Ne6 {[%clk 1:25:30]} 11. a4 {[%clk 1:32:26]} 11... a5 {[%clk
1:23:40]} 12. Ne4 {[%clk 1:32:32]} 12... b6 {[%clk 1:22:29]} 13. b3 {[%clk
1:24:42]} 13... h6 {[%clk 1:16:20]} 14. Be3 {[%clk 1:22:16]} 14... Nd4 {[%clk
1:10:27]} 15. Nxd4 {[%clk 1:17:32]} 15... cxd4 {[%clk 1:10:43]} 16. Bf4 {[%clk
1:18:00]} 16... c5 {[%clk 1:03:55]} 17. h4 {[%clk 1:15:37]} 17... Be6 {[%clk
0:56:23]} 18. h5 {[%clk 1:13:48]} 18... g5 {[%clk 0:52:57]} 19. Bg3 {[%clk
1:12:52]} 19... Qd7 {[%clk 0:48:44]} 20. Qd2 {[%clk 1:09:24]} 20... Bg4 {[%clk
0:46:07]} 21. f4 {[%clk 1:07:57]} 21... f6 {[%clk 0:45:14]} 22. exf6 {[%clk
0:43:41]} 22... exf6 {[%clk 0:45:27]} 23. fxg5 {[%clk 0:44:00]} 23... fxg5
{[%clk 0:45:10]} 24. Nd6 {[%clk 0:43:46]} 24... Bxh5 {[%clk 0:38:52]} 25. Nc4
{[%clk 0:44:13]} 25... Rf6 {[%clk 0:37:04]} 26. Be5 {[%clk 0:43:44]} 26... Re6
{[%clk 0:36:38]} 27. Bxg7 {[%clk 0:44:06]} 27... Kxg7 {[%clk 0:34:14]} 28. Rxe6
{[%clk 0:44:28]} 28... Qxe6 {[%clk 0:34:41]} 29. Re1 {[%clk 0:44:51]} 29... Qf6
{[%clk 0:27:03]} 30. Qf2 {[%clk 0:44:23]} 30... Rf8 {[%clk 0:23:00]} 31. Qxf6+
{[%clk 0:44:35]} 31... Rxf6 {[%clk 0:21:03]} 32. Re7+ {[%clk 0:44:58]} 32... Kg8
{[%clk 0:19:14]} 33. Rb7 {[%clk 0:45:07]} 33... Bd1 {[%clk 0:19:37]} 34. Rxb6
{[%clk 0:27:09]} 34... Rxb6 {[%clk 0:19:59]} 35. Nxb6 {[%clk 0:27:37]} 35...
Bxc2 {[%clk 0:20:22]} 36. Nd7 {[%clk 0:28:01]} 36... Bxd3 {[%clk 0:13:46]} 37.
Nxc5 {[%clk 0:28:20]} 37... Bc2 {[%clk 0:13:14]} 38. Kf2 {[%clk 0:28:39]} 38...
Kf7 {[%clk 0:10:26]} 39. Ke2 {[%clk 0:28:57]} 39... h5 {[%clk 0:09:25]} 40. Kd2
{[%clk 0:29:07]} 40... Bg6 {[%clk 0:07:37]} 41. b4 {[%clk 0:28:57]} 41... axb4
{[%clk 0:07:02]} 42. a5 {[%clk 0:29:12]} 42... Ke7 {[%clk 0:06:50]} 43. a6
{[%clk 0:29:19]} 43... Be8 {[%clk 0:07:16]} 44. Kd3 {[%clk 0:29:29]} 44... Bc6
{[%clk 0:05:42]} 45. Kxd4 {[%clk 0:29:55]} 45... Bxg2 {[%clk 0:05:06]} 46. Ne4
{[%clk 0:29:56]} 46... b3 {[%clk 0:05:32]} 47. a7 {[%clk 0:30:13]} 47... Bxe4
{[%clk 0:05:55]} 48. Kxe4 {[%clk 0:30:29]} 48... b2 {[%clk 0:06:20]} 49. a8=Q
{[%clk 0:30:52]} 49... b1=Q+ {[%clk 0:06:59]} 50. Ke5 {[%clk 0:31:33]} 50...
Qb5+ {[%clk 0:07:21]} 51. Ke4 {[%clk 0:31:45]} 51... Qe2+ {[%clk 0:07:11]} 52.
Kf5 {[%clk 0:31:35]} 52... Qb5+ {[%clk 0:06:56]} 53. Kg6 {[%clk 0:31:25]} 53...
g4 {[%clk 0:06:20]} 54. Qa3+ {[%clk 0:31:44]} 54... Ke6 {[%clk 0:06:31]} 55.
Qe3+ {[%clk 0:30:50]} 55... Qe5 {[%clk 0:06:52]} 56. Qb3+ {[%clk 0:31:15]} 56...
Qd5 {[%clk 0:06:48]} 57. Qe3+ {[%clk 0:31:36]} 57... Kd6 {[%clk 0:07:05]} 58.
Qf4+ {[%clk 0:31:41]} 58... Kc5 {[%clk 0:07:16]} 59. Qe3+ {[%clk 0:31:16]} 59...
Kc4 {[%clk 0:07:18]} 60. Qc1+ {[%clk 0:31:27]} 60... Kd4 {[%clk 0:06:59]} 61.
Qd2+ {[%clk 0:31:38]} 61... Kc5 {[%clk 0:07:25]} 62. Qa5+ {[%clk 0:31:41]} 62...
Kd6 {[%clk 0:07:52]} 63. Qb6+ {[%clk 0:28:32]} 63... Ke5 {[%clk 0:07:29]} 64.
Qb2+ {[%clk 0:28:39]} 64... Kf4 {[%clk 0:07:33]} 65. Qb8+ {[%clk 0:28:42]} 65...
Kf3 {[%clk 0:07:32]} 66. Qf8+ {[%clk 0:28:21]} 66... Kg2 {[%clk 0:07:46]} 0-1

[Variant "Standard"]
[Site "Europe Echecs"]

[Event "Championnat du monde jeunes U12"]
[Date "2024.11.23"]
[White "Petroff, Vlad"]
[Black "Yu, Zhe"]
[WhiteElo "2079"]
[BlackElo "1697"]
[Round "8.12"]
[Result "1-0"]
[TimeControl "5400+30"]

1. d4 {[%clk 1:30:50]} 1... Nf6 {[%clk 1:30:57]} 2. Nf3 {[%clk 1:31:13]} 2... d5
{[%clk 1:31:18]} 3. c4 {[%clk 1:31:25]} 3... c6 {[%clk 1:31:26]} 4. Nc3 {[%clk
1:29:41]} 4... dxc4 {[%clk 1:31:48]} 5. a4 {[%clk 1:28:18]} 5... Bf5 {[%clk
1:31:47]} 6. e3 {[%clk 1:27:50]} 6... e6 {[%clk 1:32:08]} 7. Bxc4 {[%clk
1:27:21]} 7... Bb4 {[%clk 1:31:13]} 8. O-O {[%clk 1:22:45]} 8... Nbd7 {[%clk
1:29:10]} 9. Bd3 Bxd3 {[%clk 1:29:24]} 10. Qxd3 {[%clk 1:11:42]} 10... O-O
{[%clk 1:29:47]} 11. Bd2 {[%clk 1:02:27]} 11... Qe7 {[%clk 1:26:18]} 12. Qc4
{[%clk 0:50:51]} 12... Bd6 {[%clk 1:24:55]} 13. Qb3 {[%clk 0:45:55]} 13... Rab8
{[%clk 1:12:55]} 14. e4 {[%clk 0:38:47]} 14... e5 {[%clk 1:12:56]} 15. d5 {[%clk
0:38:48]} 15... Nc5 {[%clk 1:12:41]} 16. Qc4 {[%clk 0:37:14]} 16... b5 {[%clk
1:11:46]} 17. axb5 {[%clk 0:35:14]} 17... cxb5 {[%clk 1:12:11]} 18. Nxb5 {[%clk
0:33:32]} 18... Ncxe4 {[%clk 1:07:40]} 19. Rxa7 {[%clk 0:29:52]} 19... Nxd2
{[%clk 1:06:04]} 20. Nxd2 {[%clk 0:30:06]} 20... Qd8 {[%clk 1:06:16]} 21. Ra6
{[%clk 0:26:30]} 21... Ne8 {[%clk 0:52:42]} 22. Ne4 {[%clk 0:25:30]} 22... Rxb5
{[%clk 0:47:49]} 23. Qxb5 {[%clk 0:25:48]} 23... Nc7 {[%clk 0:48:14]} 24. Qc6
{[%clk 0:23:45]} 24... Nxa6 {[%clk 0:48:40]} 25. Qxa6 {[%clk 0:23:51]} 25... Bb8
{[%clk 0:33:16]} 26. Rd1 {[%clk 0:20:42]} 26... Qh4 {[%clk 0:33:34]} 27. Ng3
{[%clk 0:18:22]} 27... f5 {[%clk 0:32:18]} 28. Qe6+ {[%clk 0:16:40]} 28... Kh8
{[%clk 0:31:28]} 29. d6 {[%clk 0:16:04]} 29... Qa4 {[%clk 0:23:59]} 30. b3
{[%clk 0:14:43]} 30... Qc6 {[%clk 0:23:09]} 31. Qe7 {[%clk 0:13:58]} 31... Re8
{[%clk 0:13:41]} 32. Nxf5 {[%clk 0:12:07]} 32... Rxe7 {[%clk 0:13:00]} 33. dxe7
{[%clk 0:12:36]} 33... h6 {[%clk 0:11:14]} 34. Rd8+ {[%clk 0:11:40]} 34... Kh7
{[%clk 0:11:35]} 35. Ne3 {[%clk 0:11:52]} 35... Qc1+ {[%clk 0:08:47]} 36. Nf1
{[%clk 0:12:17]} 36... Ba7 {[%clk 0:05:12]} 37. e8=Q {[%clk 0:12:12]} 37... Qf4
{[%clk 0:05:01]} 38. Qh8+ {[%clk 0:12:09]} 38... Kg6 {[%clk 0:05:24]} 39. Rd6+
{[%clk 0:11:44]} 39... Kh5 {[%clk 0:05:19]} 40. Qe8+ {[%clk 0:12:06]} 40... Kg4
{[%clk 0:04:03]} 41. h3+ {[%clk 0:12:25]} 41... Kh4 {[%clk 0:04:06]} 42. g3+
{[%clk 0:12:49]} 42... Qxg3+ {[%clk 0:04:20]} 43. Nxg3 {[%clk 0:13:13]} 43...
Bxf2+ {[%clk 0:03:34]} 44. Kxf2 {[%clk 0:13:41]} 44... g6 {[%clk 0:03:39]} 45.
Qxg6 {[%clk 0:14:06]} 45... Kxh3 {[%clk 0:03:52]} 46. Qh5# {[%clk 0:14:32]} 1-0

[Variant "Standard"]
[Site "Europe Echecs"]